bitfinex-derivatives/quotes_SOLF0:USTF0_20251210
["timestamp","ask_amount","ask_price","bid_price","bid_amount"]
[1765362469976,0.04943608,137.54,137.51,9.01722425]
[1765362470478,0.04943608,137.54,137.52,9.01722425]
[1765362471077,0.04943608,137.54,137.51,9.01722425]
[1765362471485,0.04943608,137.54,137.5,20.07123637]
[1765362472176,0.04943608,137.54,137.5,81.87123637]
[1765362473176,0.04943608,137.54,137.51,6.545]
[1765362473572,0.04943608,137.54,137.52,6.5444]
[1765362475288,0.04943608,137.54,137.52,20.07023637]
[1765362476490,0.04943608,137.54,137.52,6.5444]
[1765362478283,0.04943608,137.54,137.52,20.07023637]
[1765362480089,0.04943608,137.54,137.53,6.5441]
[1765362481191,3.24943608,137.54,137.51,13.52583637]
[1765362481689,0.04943608,137.54,137.51,13.52583637]
[1765362481998,0.04943608,137.54,137.53,6.5441]
[1765362482596,37.04,137.56,137.55,6.5432]
[1765362482983,23.09086355,137.56,137.55,20.06903637]
[1765362483386,3.2,137.59,137.56,6.5426]
[1765362483589,3.24906861,137.59,137.56,6.5950601]
[1765362483885,3.24906861,137.59,137.56,0.0524601]
[1765362485090,0.04906861,137.59,137.56,0.0524601]
[1765362485989,3.24906861,137.59,137.56,0.0524601]
[1765362487003,3.2,137.58,137.56,0.0524601]
[1765362487189,3.2,137.56,137.52,81.85003637]
[1765362488293,0.05491918,137.55,137.52,81.85003637]
[1765362488499,3.25491918,137.55,137.52,68.3242]
[1765362488693,3.25491918,137.55,137.52,81.85003637]
[1765362490297,3.25491918,137.55,137.52,75.30583637]
[1765362490495,3.25491918,137.55,137.52,13.52583637]
[1765362490897,3.25491918,137.55,137.51,75.30583637]
[1765362491096,3.25491918,137.55,137.51,81.85073637]
[1765362491498,3.25491918,137.55,137.51,20.07073637]
[1765362491697,3.25491918,137.55,137.51,81.85073637]
[1765362491899,3.25491918,137.55,137.51,20.07073637]
[1765362492100,3.25491918,137.55,137.51,81.85073637]
[1765362493001,0.05491918,137.55,137.52,6.5445]
[1765362493201,3.10491918,137.55,137.52,6.5445]
[1765362502305,3.14,137.53,137.51,75.30583637]
[1765362502504,3.14,137.53,137.51,61.78]
[1765362503001,3.14,137.53,137.51,68.3249]
[1765362503308,3.14,137.53,137.51,61.78]
[1765362503509,3.14,137.53,137.49,13.52583637]
[1765362504008,3.14,137.53,137.49,20.07173637]
[1765362504208,3.14,137.53,137.49,13.52583637]
[1765362504707,3.14,137.53,137.5,6.5454]
[1765362506803,3.14,137.53,137.51,6.545]
[1765362507005,26.44,137.54,137.49,13.52583637]
[1765362507204,26.44,137.54,137.5,13.52583637]
[1765362507408,26.44,137.54,137.5,15.26164452]
[1765362508410,3.14,137.53,137.5,13.52583637]
[1765362508807,3.14,137.53,137.49,13.52583637]
[1765362509011,0.04823793,137.52,137.49,13.52583637]
[1765362509207,0.04823793,137.52,137.51,6.5451]
[1765362510404,0.04823793,137.52,137.49,13.52583637]
[1765362510604,3.18823793,137.52,137.49,13.52583637]
[1765362511604,0.04823793,137.52,137.5,6.5455]
[1765362512205,0.04823793,137.52,137.51,6.5451]
[1765362513520,0.04823793,137.52,137.51,20.07093637]
[1765362521725,3.18823793,137.52,137.51,13.52583637]
[1765362522124,0.04823793,137.52,137.51,20.07093637]
[1765362523249,4.92404608,137.52,137.49,20.07153637]
[1765362523528,3.14,137.51,137.48,61.78]
[1765362523725,4.87580815,137.51,137.48,61.78]
[1765362523920,3.14,137.5,137.48,61.78]
[1765362524922,3.18823793,137.52,137.48,61.78]
[1765362525122,3.18823793,137.52,137.49,6.5458]
[1765362527335,3.18823793,137.52,137.5,6.5455]
[1765362527535,0.04823793,137.52,137.5,6.5455]
[1765362527737,0.04823793,137.52,137.5,20.07133637]
[1765362528128,0.04823793,137.52,137.51,13.52583637]
[1765362531127,0.04823793,137.52,137.5,6.5455]
[1765362531638,0.04823793,137.52,137.51,13.58623708]
[1765362532337,0.04823793,137.52,137.5,8.28130815]
[1765362533144,0.04823793,137.52,137.51,6.5451]
[1765362535742,0.04823793,137.52,137.51,20.1317063]
[1765362535939,0.04823793,137.52,137.51,6.5451]
[1765362540440,26.44,137.54,137.53,6.5441]
[1765362540647,26.44,137.54,137.53,81.92776231]
[1765362541950,26.44,137.54,137.53,68.3441]
[1765362542151,26.44,137.54,137.53,81.92776231]
[1765362544248,26.44,137.54,137.53,68.3441]
[1765362544755,0.0001,137.56,137.53,64.51144692]
[1765362544952,3.12,137.64,137.55,101.7819]
[1765362545245,3.12,137.63,137.56,75.35456253]
[1765362545443,3.12,137.63,137.54,75.35456253]
[1765362545648,3.12,137.59,137.57,0.05529761]
[1765362556650,0.05477592,137.6,137.57,0.05529761]
[1765362557142,3.37477592,137.6,137.57,0.05529761]
[1765362557549,3.37477592,137.6,137.58,6.5417]
[1765362558155,3.37477592,137.6,137.57,0.05529761]
[1765362558744,3.37477592,137.6,137.58,6.5417]
[1765362559143,0.05477592,137.6,137.58,6.5417]
[1765362560459,3.37477592,137.6,137.58,6.5417]
[1765362560959,3.37477592,137.6,137.57,0.05529761]
[1765362570868,3.37477592,137.6,137.57,6.59729761]
[1765362571069,3.37477592,137.6,137.57,0.05529761]
[1765362572271,3.32,137.58,137.53,13.57456253]
[1765362572577,3.32,137.58,137.5,115.39136253]
[1765362572975,3.32,137.58,137.51,13.57456253]
[1765362573274,3.37556264,137.56,137.53,0.04741376]
[1765362573478,3.37556264,137.56,137.53,6.59131376]
[1765362574379,3.32,137.55,137.53,0.04741376]
[1765362579984,6.03144692,137.54,137.48,68.326]
[1765362580177,3.32,137.53,137.45,13.57456253]
[1765362580484,3.32,137.53,137.44,13.57456253]
[1765362580784,3.32,137.53,137.44,35.64453225]
[1765362581084,3.3724312,137.5,137.43,177.22566253]
[1765362581470,3.3724312,137.5,137.44,6.5481]
[1765362581972,3.3724312,137.5,137.43,75.35456253]
[1765362582178,3.3724312,137.5,137.45,6.5479]
[1765362586078,3.3724312,137.5,137.46,6.5474]
[1765362586395,3.3724312,137.5,137.43,61.78]
[1765362587785,3.35,137.47,137.43,83.20989783]
[1765362587991,3.35,137.45,137.43,83.20989783]
[1765362588486,3.35,137.45,137.41,6.5496]
[1765362588687,0.05283855,137.44,137.41,6.5496]
[1765362589083,0.05283855,137.44,137.38,250.8659]
[1765362589084,3.40283855,137.44,137.38,61.8]
[1765362590091,3.40283855,137.44,137.38,83.55645726]
[1765362590493,0.05283855,137.44,137.39,101.8997]
[1765362590877,0.05283855,137.44,137.42,6.5491]
[1765362591684,3.35,137.5,137.46,6.5474]
[1765362592692,0.04621526,137.49,137.47,0.0494912]
[1765362593593,3.39621526,137.49,137.47,0.0494912]
[1765362594390,0.04621526,137.49,137.47,6.5963912]
[1765362594896,3.39621526,137.49,137.47,6.5963912]
[1765362595396,3.39621526,137.49,137.47,0.0494912]
[1765362597897,3.39621526,137.49,137.43,68.3685]
[1765362598194,3.39621526,137.49,137.43,61.82]
[1765362598585,3.35,137.47,137.42,6.5492]
[1765362598791,3.35,137.45,137.42,6.5492]
[1765362598988,3.35,137.45,137.38,185.48165726]
[1765362599193,3.40328745,137.43,137.38,185.48165726]
[1765362599794,3.40328745,137.43,137.38,83.57645726]
[1765362599993,3.40328745,137.43,137.38,61.82]
[1765362600197,3.40328745,137.43,137.36,3.47372242]
[1765362600198,3.35,137.42,137.36,24.79881007]
[1765362600387,3.35,137.42,137.36,3.47372242]
[1765362600593,3.35,137.4,137.36,0.64912568]
[1765362600796,3.35,137.37,137.36,0.64912568]
[1765362600998,3.35,137.37,137.31,6.5545]
[1765362601194,3.35,137.34,137.31,6.5545]
[1765362601397,3.35,137.34,137.29,23.09898531]
[1765362601591,3.35,137.34,137.29,1.74117746]
[1765362602188,3.35,137.34,137.28,61.82]
[1765362602393,3.35,137.34,137.28,63.56117746]
[1765362602601,3.35,137.34,137.29,6.5553]
[1765362603510,3.35,137.34,137.27,7.82342867]
[1765362603798,3.4036244,137.32,137.26,22.10544251]
[1765362603996,3.4036244,137.32,137.24,64.82856766]
[1765362604196,3.35,137.3,137.24,61.82]
[1765362604393,3.40212136,137.28,137.19,1.74117746]
[1765362604593,3.40212136,137.28,137.19,103.78687746]
[1765362604594,0.0520636,137.25,137.19,103.78687746]
[1765362604798,3.4020636,137.25,137.18,23.58968922]
[1765362605002,3.4020636,137.25,137.18,1.26801363]
[1765362605202,3.4020636,137.25,137.16,61.84]
[1765362605397,0.05546711,137.22,137.16,61.84]
[1765362605792,0.05546711,137.22,137.16,163.9119]
[1765362605996,0.05546711,137.22,137.18,6.5605]
[1765362606195,3.40546711,137.22,137.16,61.84]
[1765362606501,3.35,137.21,137.11,108.6734]
[1765362606701,3.35,137.21,137.12,102.0962]
[1765362607010,3.40128536,137.17,137.12,102.0962]
[1765362607198,0.05449764,137.16,137.11,1.2686608]
[1765362607393,3.40449764,137.16,137.08,102.1305]
[1765362607601,3.35,137.16,137.08,102.1305]
[1765362607802,0.05350251,137.13,137.08,131.54776137]
[1765362608097,3.35,137.19,137.12,102.0964]
[1765362608293,3.35,137.19,137.1,102.1141]
[1765362608497,3.35,137.19,137.08,107.9401518]
[1765362608705,3.35,137.19,137.1,102.1156]
[1765362609096,0.05031692,137.16,137.13,0.04667204]
[1765362610606,3.40031692,137.16,137.13,0.04667204]
[1765362611104,0.05031692,137.16,137.13,0.04667204]
[1765362611696,0.05031692,137.16,137.14,102.0849]
[1765362611902,3.13,137.22,137.17,102.0644]
[1765362612105,3.13,137.29,137.17,102.0644]
[1765362612312,3.13,137.27,137.16,61.9]
[1765362612707,10.6,137.26,137.16,163.9698]
[1765362612902,0.05297917,137.22,137.2,0.049134]
[1765362613100,3.18297917,137.22,137.2,0.049134]
[1765362613306,0.05297917,137.22,137.2,0.049134]
[1765362614310,3.18297917,137.22,137.2,0.049134]
[1765362614514,0.05297917,137.22,137.2,0.049134]
[1765362615807,0.05297917,137.22,137.2,102.091634]
[1765362616110,7.47,137.26,137.23,102.0199]
[1765362616517,7.47,137.26,137.24,6.5576]
[1765362616816,3.19,137.32,137.25,163.9213]
[1765362617021,0.05558889,137.3,137.27,0.04856145]
[1765362617513,3.24558889,137.3,137.27,0.04856145]
[1765362618610,0.05558889,137.3,137.27,0.04856145]
[1765362619317,3.24558889,137.3,137.27,0.04856145]
[1765362619715,0.05558889,137.3,137.27,0.04856145]
[1765362619916,0.05558889,137.3,137.27,106.57712862]
[1765362620321,0.05558889,137.3,137.28,6.5558]
[1765362620520,0.05558889,137.3,137.27,4.58922862]
[1765362620828,3.24558889,137.3,137.27,0.04856145]
[1765362621126,0.05558889,137.3,137.27,0.04856145]
[1765362621523,3.19,137.36,137.3,101.967]
[1765362621723,3.19,137.36,137.3,168.40766717]
[1765362621925,3.19,137.39,137.31,101.9579]
[1765362622227,3.19,137.39,137.31,6.5545]
[1765362622416,3.19,137.39,137.31,62.0]
[1765362622610,0.05211589,137.36,137.34,0.05358187]
[1765362622826,3.24211589,137.36,137.34,0.05358187]
[1765362623520,0.05211589,137.36,137.34,0.05358187]
[1765362623826,3.24211589,137.36,137.34,0.05358187]
[1765362625214,4.70211589,137.36,137.3,61.9]
[1765362625515,3.24211589,137.36,137.3,61.9]
[1765362625716,3.24211589,137.36,137.27,6.5563]
[1765362625919,3.19,137.35,137.26,61.9]
[1765362626225,3.19,137.31,137.29,0.05308724]
[1765362627022,3.19,137.31,137.22,163.9248]
[1765362627419,3.19,137.31,137.24,102.0121]
[1765362627933,0.04892392,137.29,137.26,102.04977296]
[1765362628132,0.05553242,137.29,137.26,163.94357114]
[1765362628628,0.05553242,137.29,137.28,6.5557]
[1765362630035,0.05553242,137.29,137.26,163.94197114]
[1765362630036,3.24553242,137.29,137.26,61.94707114]
[1765362630331,3.24553242,137.29,137.26,0.04707114]
[1765362631228,0.05553242,137.29,137.26,0.04707114]
[1765362631924,0.05553242,137.29,137.27,6.5562]
[1765362632223,3.19,137.39,137.29,101.9758]
[1765362632431,3.19,137.39,137.3,61.9]
[1765362632623,3.19,137.39,137.3,163.8637]
[1765362632820,3.19,137.39,137.31,101.9605]
[1765362633031,3.19,137.39,137.31,106.50116717]
[1765362633222,0.0495393,137.36,137.34,6.60891446]
[1765362633420,0.0495393,137.36,137.35,61.9]
[1765362634522,3.2395393,137.36,137.35,61.9]
[1765362634834,0.0495393,137.36,137.35,61.9]
[1765362636828,1.9,137.4,137.35,61.9]
[1765362637031,3.19,137.39,137.35,61.9]
[1765362637226,3.19,137.39,137.34,0.05591446]
[1765362637934,3.19,137.37,137.34,0.05591446]
[1765362638135,3.19,137.36,137.22,106.56596717]
[1765362638324,3.19,137.36,137.25,61.88]
[1765362639020,3.23783746,137.32,137.29,0.05214638]
[1765362639228,3.19,137.32,137.28,6.5559]
[1765362639423,3.19,137.32,137.25,61.88]
[1765362639424,3.24509819,137.32,137.29,0.05543471]
[1765362641132,3.19,137.31,137.29,0.05543471]
[1765362641633,3.19,137.3,137.25,61.88]
[1765362642634,3.19,137.28,137.26,0.05471231]
[1765362644530,0.05375814,137.29,137.26,0.05471231]
[1765362644923,3.24375814,137.29,137.26,0.05471231]
[1765362646630,9.79955814,137.29,137.26,0.05471231]
[1765362646827,3.24375814,137.29,137.21,6.5591]
[1765362647132,3.24375814,137.29,137.18,61.9]
[1765362647334,3.27,137.25,137.19,6.56]
[1765362647635,3.27,137.25,137.18,61.9]
[1765362647835,0.04827584,137.23,137.2,0.04807597]
[1765362648340,3.31827584,137.23,137.2,0.04807597]
[1765362648837,3.31827584,137.23,137.2,6.60777597]
[1765362649040,0.04827584,137.23,137.2,6.60777597]
[1765362649335,3.31827584,137.23,137.2,0.04807597]
[1765362651133,0.04827584,137.23,137.2,0.04807597]
[1765362651445,3.31827584,137.23,137.2,0.04807597]
[1765362652527,0.04827584,137.23,137.2,0.04807597]
[1765362653229,0.04827584,137.23,137.21,6.559]
[1765362655130,3.27,137.31,137.21,102.0344]
[1765362655336,3.27,137.31,137.2,164.0392]
[1765362656346,3.27,137.26,137.24,0.05235871]
[1765362658349,3.31616323,137.27,137.24,6.61005871]
[1765362658645,0.04616323,137.27,137.24,0.05235871]
[1765362658844,0.04616323,137.27,137.25,6.5574]
[1765362659941,6.5541,137.33,137.28,6.5559]
[1765362659942,3.27,137.33,137.28,6.5559]
[1765362660643,3.27,137.33,137.27,101.9901]
[1765362660942,0.04977305,137.31,137.29,0.05455915]
[1765362661140,3.27,137.39,137.3,101.9669]
[1765362661345,3.27,137.39,137.29,101.9719]
[1765362661937,3.27,137.39,137.28,61.92]
[1765362661938,3.27,137.36,137.31,6.5543]
[1765362662133,3.31825429,137.35,137.32,0.05430485]
[1765362663040,0.04825429,137.35,137.32,0.05430485]
[1765362663441,3.31825429,137.35,137.32,0.05430485]
[1765362664548,9.87105429,137.35,137.32,0.05430485]
[1765362664750,3.27,137.33,137.32,0.05430485]
[1765362664949,1.73,137.34,137.32,0.05430485]
[1765362665252,3.27,137.33,137.32,0.05430485]
[1765362665850,3.27,137.33,137.28,61.92]
[1765362666342,1.73,137.34,137.28,61.92]
[1765362666546,1.73,137.34,137.29,101.9751]
[1765362666940,1.73,137.34,137.3,0.05411098]
[1765362666941,0.04991317,137.33,137.3,0.05411098]
[1765362667244,0.04991317,137.33,137.31,6.5543]
[1765362667442,3.27,137.43,137.31,101.9591]
[1765362667644,3.27,137.4,137.3,101.9654]
[1765362667854,3.27,137.4,137.31,61.9]
[1765362668259,3.27,137.39,137.31,163.8555]
[1765362668452,0.04991215,137.36,137.34,0.0494558]
[1765362668754,3.27,137.43,137.37,6.5515]
[1765362669555,0.05347604,137.41,137.39,0.05028621]
[1765362669753,3.32347604,137.41,137.39,0.05028621]
[1765362671047,3.32347604,137.41,137.32,61.9]
[1765362671253,3.27,137.41,137.32,61.9]
[1765362671655,3.27,137.41,137.34,6.553]
[1765362672056,3.31601901,137.39,137.36,0.04762266]
[1765362673450,0.04601901,137.39,137.36,0.04762266]
[1765362673657,3.38601901,137.39,137.36,0.04762266]
[1765362679457,3.05,137.37,137.36,0.04762266]
[1765362679660,3.05,137.37,137.27,163.8695]
[1765362680655,3.05,137.37,137.29,101.9713]
[1765362680875,0.04900639,137.34,137.32,0.05155426]
[1765362682374,0.04900639,137.34,137.32,6.60535426]
[1765362684091,0.04900639,137.34,137.32,0.05155426]
[1765362687095,0.04900639,137.34,137.32,6.60565426]
[1765362687391,3.05,137.4,137.32,61.93155426]
[1765362687595,3.05,137.4,137.32,61.88]
[1765362688094,101.8605,137.45,137.32,163.8305]
[1765362688393,3.05,137.39,137.37,0.04870759]
[1765362690094,0.04764718,137.4,137.37,0.04870759]
[1765362690296,3.09764718,137.4,137.37,0.04870759]
[1765362692489,9.64804718,137.4,137.37,0.04870759]
[1765362692691,3.05,137.39,137.37,0.04870759]
[1765362693592,3.05,137.39,137.32,61.88]
[1765362694189,3.05,137.38,137.33,6.5535]
[1765362694389,3.05,137.38,137.29,62.0]
[1765362694594,3.05,137.34,137.32,0.05437969]
[1765362695195,0.05167614,137.35,137.32,0.05437969]
[1765362695590,0.05167614,137.35,137.33,6.5536]
[1765362697399,3.05,137.42,137.36,6.5522]
[1765362697601,3.05,137.42,137.34,101.9366]
[1765362698398,0.04886198,137.39,137.37,0.05514367]
[1765362699201,0.04886198,137.39,137.37,6.60674367]
[1765362699610,0.04886198,137.39,137.37,68.48674367]
[1765362702103,3.05,137.46,137.39,6.5507]
[1765362703106,3.104533,137.44,137.41,0.04954612]
[1765362703898,9.653133,137.44,137.41,0.04954612]
[1765362704202,3.05,137.43,137.34,13.57456253]
[1765362704403,3.05,137.43,137.32,13.57456253]
[1765362704605,3.05,137.43,137.32,61.86]
[1765362704803,3.05,137.4,137.32,61.86]
[1765362705207,0.04767793,137.37,137.35,0.05003449]
[1765362705600,0.04767793,137.37,137.36,6.5521]
[1765362705797,3.05,137.43,137.35,101.97793449]
[1765362706004,3.05,137.43,137.35,115.55249702]
[1765362706207,3.05,137.43,137.38,101.9086]
[1765362706400,3.12,137.47,137.38,163.7686]
[1765362706801,3.16738111,137.44,137.41,0.04803778]
[1765362708913,9.71598111,137.44,137.41,0.04803778]
[1765362709208,3.12,137.43,137.41,0.04803778]
[1765362710701,9.6689,137.43,137.41,0.04803778]
[1765362710906,3.12,137.42,137.36,6.552]
[1765362711107,3.12,137.42,137.34,101.9372]
[1765362711314,3.12,137.41,137.37,6.5516]
[1765362711913,3.12,137.39,137.38,0.05483102]
[1765362712116,0.04849315,137.4,137.38,0.05483102]
[1765362712310,3.16849315,137.4,137.38,0.05483102]
[1765362713011,3.16849315,137.4,137.38,6.60603102]
[1765362714110,3.16849315,137.4,137.38,0.05483102]
[1765362715318,0.04849315,137.4,137.38,0.05483102]
[1765362716017,0.04849315,137.4,137.38,6.60603102]
[1765362718020,0.04849315,137.4,137.39,6.5508]
[1765362718513,0.04849315,137.4,137.38,0.05483102]
[1765362718714,3.16849315,137.4,137.38,0.05483102]
[1765362719315,0.04849315,137.4,137.38,0.05483102]
[1765362720122,0.04849315,137.4,137.38,6.60603102]
[1765362720417,3.16849315,137.4,137.38,6.60603102]
[1765362721119,0.04849315,137.4,137.38,6.60603102]
[1765362721317,0.04849315,137.4,137.38,0.05483102]
[1765362721519,0.04849315,137.4,137.39,6.5508]
[1765362722517,3.12,137.45,137.41,6.5497]
[1765362723321,3.12,137.44,137.39,6.5504]
[1765362723512,3.12,137.42,137.4,0.05259438]
[1765362725322,9.6696,137.42,137.4,0.05259438]
[1765362725522,3.12,137.41,137.4,0.05259438]
[1765362725920,3.17321629,137.43,137.4,0.05259438]
[1765362728626,9.72221629,137.43,137.4,0.05259438]
[1765362728825,3.05,137.42,137.4,0.05259438]
[1765362731426,9.5995,137.42,137.4,0.05259438]
[1765362731726,3.05,137.41,137.34,13.57456253]
[1765362732523,3.09639812,137.39,137.36,0.04883332]
[1765362733925,0.04639812,137.39,137.36,13.62339585]
[1765362734121,3.09639812,137.39,137.36,13.62339585]
[1765362734321,3.09639812,137.39,137.36,0.04883332]
[1765362734529,0.04639812,137.39,137.36,13.62339585]
[1765362734726,0.04639812,137.39,137.36,15.36304389]
[1765362735528,3.05,137.42,137.38,15.31421057]
[1765362735832,3.14,137.45,137.38,15.31421057]
[1765362736033,3.14,137.45,137.41,6.5496]
[1765362736535,0.05386564,137.44,137.42,0.05574009]
[1765362736833,0.05386564,137.44,137.42,8.34468813]
[1765362737142,0.05386564,137.44,137.42,6.60504009]
[1765362737436,3.14,137.48,137.44,6.5483]
[1765362738320,0.05439891,137.47,137.44,6.5483]
[1765362739833,0.05439891,137.47,137.43,13.57456253]
[1765362739834,0.05439891,137.47,137.45,6.5477]
[1765362740630,0.05439891,137.47,137.43,20.12316253]
[1765362741232,0.05439891,137.47,137.43,13.57456253]
[1765362742638,0.05439891,137.47,137.44,6.5482]
[1765362742933,0.05439891,137.47,137.43,115.44356253]
[1765362743435,0.05439891,137.47,137.45,6.5478]
[1765362744432,0.05439891,137.47,137.46,61.84]
[1765362745329,3.19439891,137.47,137.46,61.84]
[1765362745840,3.19439891,137.47,137.45,0.0508537]
[1765362753041,0.05439891,137.47,137.45,0.0508537]
[1765362754437,0.05439891,137.47,137.46,6.5474]
[1765362754735,0.05439891,137.47,137.45,0.0508537]
[1765362755538,0.05439891,137.47,137.46,6.5474]
[1765362756245,0.05439891,137.47,137.45,0.0508537]
[1765362757840,0.05439891,137.47,137.45,6.5987537]
[1765362758942,0.05439891,137.47,137.45,0.0508537]
[1765362759846,0.05439891,137.47,137.45,6.5987537]
[1765362760648,0.05439891,137.47,137.45,0.0508537]
[1765362760649,3.19439891,137.47,137.45,0.0508537]
[1765362764954,3.19439891,137.47,137.45,6.5986537]
[1765362765852,3.19439891,137.47,137.45,0.0508537]
[1765362770752,3.19439891,137.47,137.39,20.12486253]
[1765362770950,105.03959891,137.47,137.38,13.57456253]
[1765362771149,3.08,137.42,137.37,6.5516]
[1765362771348,3.08,137.42,137.36,75.39456253]
[1765362771753,3.13359876,137.4,137.38,0.05124214]
[1765362772057,3.13518211,137.4,137.38,0.05124214]
[1765362772247,3.08,137.39,137.38,0.05124214]
[1765362773561,3.13518211,137.4,137.38,0.05124214]
[1765362777656,3.13518211,137.4,137.38,0.00124214]
[1765362777858,3.13518211,137.4,137.34,13.57456253]
[1765362778062,3.08,137.4,137.32,13.57456253]
[1765362778859,3.13001856,137.37,137.35,0.05047312]
[1765362779062,3.13096598,137.37,137.35,0.05047312]
[1765362779859,0.05096598,137.37,137.35,6.60307312]
[1765362780551,0.05096598,137.37,137.35,68.60307312]
[1765362780965,3.13096598,137.37,137.35,6.60307312]
[1765362781964,3.13096598,137.37,137.35,0.05047312]
[1765362782862,3.13096598,137.37,137.35,6.60307312]
[1765362783064,3.13096598,137.37,137.35,0.05047312]
[1765362785871,0.05096598,137.37,137.35,0.05047312]
[1765362786372,3.13096598,137.37,137.35,6.60307312]
[1765362786572,0.05096598,137.37,137.35,6.60307312]
[1765362787173,3.13096598,137.37,137.35,0.05047312]
[1765362792374,0.05096598,137.37,137.35,0.05047312]
[1765362792874,0.05096598,137.37,137.36,61.86]
[1765362793069,0.05096598,137.37,137.36,68.4122]
[1765362793674,3.12096598,137.37,137.36,61.86]
[1765362794672,0.05096598,137.37,137.36,61.86]
[1765362795072,3.12096598,137.37,137.35,0.05047312]
[1765362795671,3.07,137.36,137.35,0.05047312]
[1765362795980,3.07,137.36,137.31,61.86]
[1765362796170,3.07,137.36,137.3,6.555]
[1765362796371,3.19,137.35,137.28,61.86]
[1765362796772,0.05289148,137.33,137.3,0.05494155]
[1765362796971,0.05289148,137.33,137.31,6.5546]
[1765362802382,0.05289148,137.33,137.32,61.86]
[1765362803276,3.24289148,137.33,137.3,0.05494155]
[1765362803977,3.24289148,137.33,137.25,61.88]
[1765362804178,3.19,137.33,137.25,61.88]
[1765362804388,3.19,137.3,137.25,68.4373]
[1765362804888,0.05288027,137.29,137.26,0.05201918]
[1765362805188,3.24288027,137.29,137.26,0.05201918]
[1765362809387,0.05288027,137.29,137.26,6.60891918]
[1765362809588,3.24288027,137.29,137.26,6.60891918]
[1765362811276,3.24288027,137.29,137.27,6.5565]
[1765362812202,3.24288027,137.29,137.26,0.05201918]
[1765362813491,3.19,137.27,137.26,0.05201918]
[1765362814588,3.24288027,137.29,137.26,0.05201918]
[1765362818387,3.24288027,137.29,137.26,6.60901918]
[1765362819987,3.24288027,137.29,137.27,6.5565]
[1765362821796,3.24288027,137.29,137.28,6.556]
[1765362822088,0.05288027,137.29,137.28,6.556]
[1765362822594,3.24288027,137.29,137.28,6.556]
[1765362823688,0.05288027,137.29,137.28,6.556]
[1765362824287,3.19,137.35,137.28,163.8796]
[1765362824487,61.9,137.38,137.29,101.9755]
[1765362824488,65.09,137.38,137.29,101.9755]
[1765362824691,3.19,137.37,137.3,101.9681]
[1765362825394,0.05455064,137.35,137.32,0.04909311]
[1765362825594,0.05455064,137.35,137.33,6.5536]
[1765362825992,3.16455064,137.35,137.33,6.5536]
[1765362826386,0.05455064,137.35,137.33,6.5536]
[1765362831900,3.16455064,137.35,137.32,61.94909311]
[1765362832698,0.05455064,137.35,137.33,6.5535]
[1765362835398,3.16455064,137.35,137.32,75.52365564]
[1765362835594,3.16455064,137.35,137.32,61.94909311]
[1765362835795,3.16455064,137.35,137.32,61.92909311]
[1765362836506,3.16455064,137.35,137.32,68.48319311]
[1765362836703,0.05455064,137.35,137.32,61.92909311]
[1765362837200,3.16455064,137.35,137.32,61.92909311]
[1765362837506,3.16455064,137.35,137.33,6.5535]
[1765362837701,3.16455064,137.35,137.32,61.92909311]
[1765362838202,3.16455064,137.35,137.32,68.48319311]
[1765362839898,0.05455064,137.35,137.33,6.5536]
[1765362840707,0.05455064,137.35,137.34,6.5532]
[1765362841495,3.16455064,137.35,137.32,68.48289311]
[1765362842508,3.16455064,137.35,137.33,6.5534]
[1765362842509,0.05455064,137.35,137.33,6.5534]
[1765362843506,3.16455064,137.35,137.33,6.5534]
[1765362844009,3.16455064,137.35,137.32,61.92909311]
[1765362844215,3.16455064,137.35,137.32,0.04909311]
[1765362845108,4.90598436,137.35,137.32,0.04909311]
[1765362845414,3.11,137.34,137.32,0.04909311]
[1765362846007,4.85143372,137.33,137.32,0.04909311]
[1765362846209,3.11,137.33,137.32,0.04909311]
[1765362848719,3.16455064,137.35,137.32,0.04909311]
[1765362850917,3.16455064,137.35,137.32,6.60319311]
[1765362851323,3.16455064,137.35,137.32,0.04909311]
[1765362852320,9.71725064,137.35,137.32,0.04909311]
[1765362852516,3.23,137.34,137.28,61.88]
[1765362852707,1.79598436,137.35,137.28,61.88]